{"text_format":"3","workbook":"xlsx","n_sheets":2,"sheets":["初中、高中岗位表","职业学校岗位表"],"not_rendered":{"defined_names":4},"read":"whole","date_system":"1900"}

{"sheet":"初中、高中岗位表","index":0,"n_rows":52,"n_cols":23,"rows_kept":52,"merged":[[0,0,0,22],[1,0,2,0],[1,1,2,1],[1,2,2,2],[1,3,2,3],[1,4,1,21],[1,22,2,22],[3,0,19,0],[20,0,25,0],[26,0,28,0],[29,0,36,0],[29,2,36,2],[37,0,40,0],[41,0,43,0],[44,0,47,0],[48,0,51,0]]}
["2025年常州市教育系统“优才计划”公开招聘教师岗位简介表（初、高中）"]
["主管部门","序号","招聘单位","合计","招聘岗位",{"$nulls":17},"备注"]
[{"$nulls":4},"高中语文","高中数学","高中英语","高中物理","高中化学","高中生物","高中政治","高中历史","高中地理","高中信息技术","高中心理健康","初中语文","初中数学","初中英语","初中物理","初中化学","初中道德与法治","初中历史"]
["常州市教育局",1,"江苏省常州高级中学",{"$f":"SUM(E4:V4)","v":31},5,4,5,4,3,4,2,1,2,1]
[null,2,"常州市第一中学",{"$f":"SUM(E5:V5)","v":24},4,5,2,3,3,3,2,null,1,1]
[null,3,"常州市北郊高级中学",13,2,2,2,2,2,null,1,null,1,null,1]
[null,4,"常州市第二中学",3,1,{"$nulls":3},1,null,1]
[null,5,"常州市第三中学",6,null,null,1,2,1,null,1,null,1]
[null,6,"常州市第五中学",10,1,2,2,1,2,1,null,null,1]
[null,7,"常州市田家炳高级中学",3,{"$nulls":4},1,{"$nulls":3},2]
[null,8,"常州市戚墅堰高级中学",4,null,1,1,null,2]
[null,9,"常州市三河口高级中学",4,null,1,1,null,1,{"$nulls":3},1]
[null,10,"常州市龙城高级中学",80,12,13,11,7,6,7,6,6,9,2,1]
[null,11,"常州市正行中学",23,4,5,4,2,2,null,2,null,3,1]
[null,12,"常州市教科院附属高级中学",40,7,6,6,4,4,1,3,1,5,2,1]
[null,13,"常州市北郊初级中学",1,{"$nulls":12},1]
[null,14,"常州市朝阳中学",1,{"$nulls":17},1]
[null,15,"常州市第二十四中学",2,{"$nulls":12},1,null,1]
[null,16,"常州市实验初级中学",1,{"$nulls":12},1]
[null,17,"常州市清潭中学",1,{"$nulls":13},1]
["溧阳市\n教育局",18,"江苏省溧阳中学",15,4,1,1,1,4,2,1,1]
[null,19,"溧阳市光华高级中学",6,null,null,1,2,null,null,2,null,1]
[null,20,"溧阳市南渡高级中学",5,1,null,null,1,2,{"$nulls":3},1]
[null,21,"溧阳市埭头高级中学",3,1,1,null,null,1]
[null,22,"溧阳市竹箦中学",3,1,null,null,1,{"$nulls":4},1]
[null,23,"溧阳市戴埠高级中学",3,null,1,{"$nulls":6},2]
["常州市金坛区教育局",24,"江苏省华罗庚中学",{"$f":"SUM(E27:V27)","v":15},4,4,3,2,2]
[null,25,"常州市金坛区第一中学",{"$f":"SUM(E28:V28)","v":5},1,1,null,1,1,{"$nulls":3},1]
[null,26,"常州市金坛区第四中学",4,null,null,1,1,null,null,1,null,1]
["常州市武进区教育局",27,"常州市武进区教师管理服务中心",{"$f":"SUM(E30:V30)","v":15},2,2,2,2,2,2,2,1,{"$nulls":10},"安排在江苏省前黄高级中学工作"]
[null,28,null,25,4,4,4,3,3,1,2,2,2,{"$nulls":9},"安排在常州市武进区前黄实验高级中学工作"]
[null,29,null,25,4,5,4,4,3,1,1,1,1,1,{"$nulls":8},"安排在江苏省武进高级中学工作"]
[null,30,null,5,1,3,null,null,1,{"$nulls":13},"安排在常州市武进区湟里高级中学工作"]
[null,31,null,5,1,null,1,1,1,{"$nulls":3},1,{"$nulls":9},"安排在常州市武进区洛阳高级中学工作"]
[null,32,null,20,3,4,4,2,1,1,1,2,2,{"$nulls":9},"安排在常州市武进区礼嘉高级中学工作"]
[null,33,null,25,4,5,4,2,2,2,2,2,2,{"$nulls":9},"安排在常州市武进区第二高级中学工作"]
[null,34,null,6,3,{"$nulls":3},3,{"$nulls":13},"安排在江苏省武进高级中学工作（聘用后前三年由常州市教育局统筹安排在市直属学校工作）"]
["常州国家高新区（新北区）教育局",35,"江苏省奔牛高级中学",19,3,3,3,2,4,null,1,1,1,1]
[null,36,"常州市新桥高级中学",16,3,3,3,1,3,null,2,null,1]
[null,37,"常州市西夏墅高级中学",13,2,2,2,2,1,null,3,1]
[null,38,"常州市新北区实验中学",12,{"$nulls":11},2,4,3,1,1,null,1]
["常州市天宁区教育局",39,"常州市第二十四中学天宁分校",5,{"$nulls":11},1,1,1,1,1]
[null,40,"常州市正衡中学天宁分校",2,{"$nulls":13},1,null,1]
[null,41,"常州市实验初级中学天宁分校",1,{"$nulls":13},1]
["常州市钟楼区教育局",42,"常州市钟楼实验中学",2,{"$nulls":14},1,null,1]
[null,43,"常州新闸中学",2,{"$nulls":14},1,null,null,1]
[null,44,"常州市西林实验学校（中学部）",2,{"$nulls":13},1,null,null,1]
[null,45,"常州市群英学校（筹）",2,{"$nulls":12},1,1]
["常州经开区教育和文体旅局",46,"江苏省横林高级中学",{"$f":"SUM(E49:V49)","v":3},null,1,null,1,1]
[null,47,"常州经开区横山桥高级中学",{"$f":"SUM(E50:V50)","v":3},null,null,1,2]
[null,48,"常州经开区初级中学",{"$f":"SUM(E51:V51)","v":3},{"$nulls":11},1,1,1]
[null,49,"常州经开区横林实验初级中学",{"$f":"SUM(E52:V52)","v":3},{"$nulls":12},2,1]

{"sheet":"职业学校岗位表","index":1,"n_rows":31,"n_cols":9,"rows_kept":31,"merged":[[0,0,0,8],[2,0,17,0],[2,2,4,2],[5,2,13,2],[14,2,17,2],[18,0,22,0],[18,2,22,2],[23,0,30,0],[23,2,30,2]]}
["2025年常州市教育系统“优才计划”公开招聘教师岗位简介表（职业学校）"]
["主管部门","序号","招聘单位","岗位名称","招聘\n数量","学历","专业（方向）","其他条件","备注"]
["常州市教育局",1,"常州开放大学","高职校机电专业教师",1,"研究生","机电控制类","取得相应学位","专业课，承担测试与传感技术、电机调速运动控制技术、机电一体化控制技术、电气电机拖动等专业课程教学"]
[null,2,null,"高职校跨境电商专业教师",1,"研究生","经济类；工商管理类；商务贸易类","取得相应学位","专业课，承担跨境电商实务、跨境电商平台运营、跨境支付与结算、电子商务网站建设与管理、跨境电商英语等专业课程教学"]
[null,3,null,"高职校计算机专业教师",1,"研究生","计算机类","取得相应学位","专业课，承担网络安装与维护、数据库管理、计算机电路基础、多媒体技术基础等专业课程教学"]
[null,4,"常州刘国钧高等职业技术学","高职校语文教师",1,"研究生","语文相关专业","取得相应学位，本科或研究生阶段为语文相关专业","公共课，承担语文课程教学"]
[null,5,null,"高职校数学教师",1,"研究生","数学相关专业","取得相应学位，本科或研究生阶段为数学相关专业","公共课，承担数学课程教学"]
[null,6,null,"高职校思政教师",1,"研究生","思政相关专业","取得相应学位，本科或研究生阶段为思政相关专业","公共课，承担思政课程教学"]
[null,7,null,"高职校心理健康教师",1,"研究生","心理健康相关专业","取得相应学位，本科或研究生阶段为心理健康相关专业","承担学生心理健康教育工作"]
[null,8,null,"高职校财经专业教师",1,"研究生","财务财会类；工商管理类","取得相应学位","专业课，承担大数据与会计、金融服务与管理等专业课程的理实一体化教学"]
[null,9,null,"高职校计算机网络技术专业教师",1,"研究生","计算机类","取得相应学位","专业课，承担计算机网络技术专业网络搭建、Linux操作系统、Windows操作系统、信息安全等专业课程的理实一体化教学"]
[null,10,null,"高职校计算机软件技术专业教师",1,"研究生","计算机类","取得相应学位","专业课，承担软件技术专业Vue前端框架技术、PHP程序设计、Node.JS应用开发等专业课程的理实一体化教学"]
[null,11,null,"高职校艺术设计专业教师",2,"研究生","艺术类","取得相应学位","专业课，承担广告艺术设计、动漫设计等专业课程的理实一体化教学"]
[null,12,null,"高职校汽车专业教师",1,"研究生","交通工程类；机械工程类；机电控制类；电子信息类","取得相应学位","专业课，承担汽车检测与维修技术、汽车技术服务与营销、新能源汽车技术等专业课程的理实一体化教学"]
[null,13,"常州旅游商贸高等职业技术学校","高职校地理教师",1,"研究生","地理相关专业","取得相应学位，本科或研究生阶段为地理相关专业","公共课，承担地理课程教学"]
[null,14,null,"高职校人力资源管理专业教师",1,"研究生","公共管理类；工商管理类","取得相应学位","专业课，承担人力资源管理、人力资源管理高级实验、培训与人力资源开发等专业课程教学"]
[null,15,null,"高职校运动健康指导专业教师",1,"研究生","教育类","取得相应学位","专业课，承担运动人体科学、运动按摩、运动解剖、运动心理学等专业课程教学"]
[null,16,null,"高职校数字媒体专业教师",1,"研究生","艺术类","取得相应学位","专业课，承担视听语言，摄影摄像，影视特效专业课程教学"]
["溧阳市教育局",17,"江苏省溧阳中等专业学校","中职校语文教师",1,"研究生","语文相关专业","取得相应学位，具有高中或中等职业学校相应学科教师资格证书，本科或研究生阶段为语文相关专业","公共课，承担语文课程教学"]
[null,18,null,"中职校电子商务专业教师",1,"研究生","经济类；工商管理类；商务贸易类","取得相应学位","专业（技能）课，承担数字商务信息技术、商务沟通与礼仪、跨境电商营销、电商物流与配送等专业课程教学"]
[null,19,null,"中职校旅游管理专业教师",1,"研究生","公共管理类；工商管理类；教育类","取得相应学位，本科或研究生阶段为旅游管理相关专业","专业（技能）课，承担旅游概论、导游服务技能、导游法规知识等专业课程教学"]
[null,20,null,"中职校烹饪专业教师",1,"研究生","工商管理类；食品工程类","取得相应学位，本科阶段须为烹饪相关专业","专业（技能）课，承担烹饪营养与安全、中式菜肴制作、冷菜制作与食品雕刻等专业课程教学"]
[null,21,null,"中职校婴幼儿托育服务与管理专业教师",1,"研究生","教育类","取得相应学位","专业（技能）课，承担学前教育学、婴幼儿学习与发展、婴幼儿行为观察与记录、婴幼儿回应性照料、婴幼儿伤害预防与处理等专业课程教学"]
["常州市武进区教育局",22,"常州市武进区教师管理服务中心(“区管校聘”单位，安排在常州市高级职业技术学校工作）\n","中职校烹饪专业教师",1,"研究生","工商管理类；食品工程类","取得相应学位，本科阶段须为烹饪相关专业","专业课，承担中式烹调工艺，中式面点工艺，西式面点工艺等专业课程教学"]
[null,23,null,"中职校旅游管理专业教师",1,"研究生","公共管理类；工商管理类；教育类","取得相应学位，本科或研究生阶段须为旅游管理相关专业","专业课，承担导游基础知识，导游业务，旅游政策与法规，旅游概论等专业课程教学"]
[null,24,null,"中职校财经商贸专业教师",1,"研究生","经济类；财务财会类","取得相应学位","专业课，承担经济学原理、经济法基础、财务管理实务、财务基础知识等专业课程教学"]
[null,25,null,"中职校艺术设计专业教师",1,"研究生","艺术类","取得相应学位","专业课，承担素描、速写、色彩、三维设计、新媒体视觉设计等专业课程教学"]
[null,26,null,"中职校语文教师",2,"研究生","语文相关专业","取得相应学位，具有高中或中等职业学校相应学科教师资格证书，本科或研究生阶段为语文相关专业","公共课，承担语文课程教学"]
[null,27,null,"中职校数学教师",2,"研究生","数学相关专业","取得相应学位，具有高中或中等职业学校相应学科教师资格证书，本科或研究生阶段为数学相关专业","公共课，承担数学课程教学"]
[null,28,null,"中职校英语教师",1,"研究生","英语相关专业","取得相应学位，具有高中或中等职业学校相应学科教师资格证书，本科或研究生阶段为英语相关专业","公共课，承担英语课程教学"]
[null,29,null,"中职校思政教师",1,"研究生","思政相关专业","取得相应学位，具有高中或中等职业学校相应学科教师资格证书，本科或研究生阶段为思政相关专业","公共课，承担思政课程教学"]